[Event "World Junior U20 Open 2018"]
[Site "Gebze"]
[Date "2018.09.12"]
[Round "8.67"]
[White "Kara, Yanki"]
[Black "Petkov, Momchil"]
[Result "0-1"]
[ECO "A11"]
[WhiteElo "2262"]
[BlackElo "2163"]
[Annotator "NA"]
[PlyCount "71"]
[EventDate "2018.09.05"]
[EventType "swiss"]
[EventCountry "TUR"]
[SourceTitle "playchess.com"]
[Source "ChessBase"]
[SourceQuality "1"]
[TimeControl "40/5400+30:1800+30"]

1. Nf3 {[%emt 0:00:30]} Nf6 {[%emt 0:00:30]} 2. g3 {[%emt 0:00:00]} d5 {[%emt 0:00:30]} 3. Bg2 {[%emt 0:00:00]} c6 {[%emt 0:00:00]} 4. c4 {[%emt 0:00:30]} Bf5 {[%emt 0:00:00]} 5. cxd5 {[%emt 0:00:00]} cxd5 {[%emt 0:00:30]} 6. Qb3 {[%emt 0:00:00]} Nc6 {[%emt 0:00:00]} 7. Qxb7 {[%emt 0:04:30]} Bd7 {[%emt 0:00:00]} 8. Qb3 {[%emt 0:00:00]} e5 {[%emt 0:00:30]} 9. O-O {[%emt 0:09:00]} Rb8 {[%emt 0:01:30]} 10. Qd1 {[%emt 0:01:30]} e4 {[%emt 0:05:30]} 11. Ne1 {[%emt 0:00:30]} h5 {[%emt 0:00:30]} 12. d3 {[%emt 0:11:30]} h4 {[%emt 0:04:30]} 13. Bf4 {[%emt 0:04:30]} hxg3 {[%emt 0:05:30]} 14. Bxg3 {[%emt 0:01:30]} Rxb2 {[%emt 0:03:30]} 15. Nc3 {[%emt 0:03:30]} Qa5 {[%emt 0:07:30]} 16. Rc1 {[%emt 0:27:30]} Bb4 {[%emt 0:06:30]} 17. Nb1 {[%emt 0:00:30]} Nd4 {[%emt 0:12:30]} 18. Nc2 {[%emt 0:10:30]} Nxc2 {[%emt 0:13:30]} 19. Rxc2 {[%emt 0:00:30]} Qxa2 {[%emt 0:01:30]} 20. Nc3 {[%emt 0:03:46]} Qb3 {[%emt 0:05:30]} 21. Rxb2 {[%emt 0:04:33]} Qxb2 {[%emt 0:00:30]} 22. Nb1 {[%emt 0:00:24]} O-O {[%emt 0:03:30]} 23. Bh4 {[%emt 0:03:34]} Bf5 {[%emt 0:04:30]} 24. d4 {[%emt 0:01:46]} Nd7 {[%emt 0:03:30]} 25. Bg5 {[%emt 0:04:09]} a5 {[%emt 0:01:11]} 26. h4 {[%emt 0:03:11]} Rc8 {[%emt 0:03:13]} 27. f3 {[%emt 0:01:26]} exf3 {[%emt 0:02:29]} 28. Bxf3 {[%emt 0:00:01]} Bc2 {[%emt 0:02:21]} 29. Qc1 {[%emt 0:00:01]} Qxd4+ {[%emt 0:00:42]} 30. Kg2 {[%emt 0:00:04]} Ne5 {[%emt 0:02:34]} 31. Qf4 {[%emt 0:00:08]} Qxf4 {[%emt 0:00:21]} 32. Bxf4 {[%emt 0:00:30]} Nxf3 {[%emt 0:00:30]} 33. Kxf3 {[%emt 0:00:00]} a4 {[%emt 0:01:36]} 34. Be5 {[%emt 0:00:34]} a3 {[%emt 0:01:15]} 35. Ke3 {[%emt 0:00:14]} Re8 {[%emt 0:00:30]} 36. Kd4 {[%emt 0:01:04]} 0-1

[Event "World Junior U20 Open 2018"]
[Site "Gebze"]
[Date "2018.09.12"]
[Round "8.68"]
[White "Aydincelebi, Kagan"]
[Black "Noboa, Kevin"]
[Result "1/2-1/2"]
[ECO "C08"]
[WhiteElo "2060"]
[BlackElo "2256"]
[Annotator "NA"]
[PlyCount "105"]
[EventDate "2018.09.05"]
[EventType "swiss"]
[EventCountry "TUR"]
[SourceTitle "playchess.com"]
[Source "ChessBase"]
[SourceQuality "1"]
[TimeControl "40/5400+30:1800+30"]

1. e4 {[%emt 0:00:30]} e6 {[%emt 0:00:30]} 2. d4 {[%emt 0:00:00]} d5 {[%emt 0:00:30]} 3. Nd2 {[%emt 0:00:00]} c5 {[%emt 0:00:00]} 4. exd5 {[%emt 0:00:00]} exd5 {[%emt 0:00:00]} 5. Bb5+ {[%emt 0:00:00]} Bd7 {[%emt 0:00:00]} 6. Bxd7+ {[%emt 0:03:30]} Nxd7 {[%emt 0:00:00]} 7. dxc5 {[%emt 0:04:30]} Bxc5 {[%emt 0:02:30]} 8. Nb3 {[%emt 0:04:30]} Ngf6 {[%emt 0:01:30]} 9. Nxc5 {[%emt 0:02:30]} Nxc5 {[%emt 0:00:30]} 10. Ne2 {[%emt 0:00:30]} O-O {[%emt 0:00:30]} 11. O-O {[%emt 0:00:00]} Re8 {[%emt 0:04:30]} 12. Be3 {[%emt 0:06:00]} Qd6 {[%emt 0:14:30]} 13. h3 {[%emt 0:11:30]} Rad8 {[%emt 0:10:30]} 14. Nd4 {[%emt 0:01:30]} Nfe4 {[%emt 0:08:30]} 15. Nf5 {[%emt 0:13:30]} Qf6 {[%emt 0:04:30]} 16. Bxc5 {[%emt 0:00:30]} Nxc5 {[%emt 0:02:30]} 17. Nd4 {[%emt 0:01:30]} Na4 {[%emt 0:10:30]} 18. Rb1 {[%emt 0:01:30]} Re4 {[%emt 0:00:30]} 19. c3 {[%emt 0:00:30]} Nb6 {[%emt 0:00:00]} 20. Qc2 {[%emt 0:01:30]} Rde8 {[%emt 0:03:00]} 21. Rbd1 {[%emt 0:00:30]} h5 {[%emt 0:07:30]} 22. Rd2 {[%emt 0:09:30]} Nc4 {[%emt 0:04:30]} 23. Re2 {[%emt 0:00:30]} Qxd4 {[%emt 0:08:34]} 24. cxd4 {[%emt 0:00:30]} Rxe2 {[%emt 0:00:00]} 25. Qc1 {[%emt 0:00:30]} Nxb2 {[%emt 0:04:12]} 26. Qg5 {[%emt 0:03:30]} Nc4 {[%emt 0:00:11]} 27. Rd1 {[%emt 0:00:30]} Nb6 {[%emt 0:01:11]} 28. a4 {[%emt 0:00:30]} Nxa4 {[%emt 0:00:22]} 29. Ra1 {[%emt 0:03:30]} Nc3 {[%emt 0:05:52]} 30. Rxa7 {[%emt 0:00:30]} Ne4 {[%emt 0:01:45]} 31. Qxd5 {[%emt 0:05:30]} Rxf2 {[%emt 0:02:12]} 32. Rxb7 {[%emt 0:01:30]} h4 {[%emt 0:00:42]} 33. Re7 {[%emt 0:00:30]} Rxe7 {[%emt 0:01:25]} 34. Qd8+ {[%emt 0:00:30]} Kh7 {[%emt 0:00:03]} 35. Qxe7 {[%emt 0:00:30]} Rf4 {[%emt 0:00:00]} 36. d5 {[%emt 0:02:30]} Ng3 {[%emt 0:00:30]} 37. Qe1 {[%emt 0:00:00]} Rd4 {[%emt 0:00:33]} 38. Qb1+ {[%emt 0:02:00]} g6 {[%emt 0:01:35]} 39. Qb7 {[%emt 0:02:30]} Rf4 {[%emt 0:02:32]} 40. Qb5 {[%emt 0:00:00]} Rf5 {[%emt 0:00:00]} 41. Qc4 {[%emt 0:01:00]} Rf4 {[%emt 0:01:51]} 42. Qb5 {[%emt 0:01:30]} Nf5 {[%emt 0:04:30]} 43. d6 {[%emt 0:03:30]} Rd4 {[%emt 0:04:30]} 44. d7 {[%emt 0:00:30]} Ng7 {[%emt 0:00:30]} 45. Kf2 {[%emt 0:01:30]} Ne6 {[%emt 0:00:30]} 46. Ke3 {[%emt 0:00:30]} Rd6 {[%emt 0:04:34]} 47. Qa4 {[%emt 0:03:30]} Kg7 {[%emt 0:01:56]} 48. Qb5 {[%emt 0:00:30]} Kf6 {[%emt 0:02:36]} 49. Qb8 {[%emt 0:03:30]} Rxd7 {[%emt 0:00:52]} 50. Qh8+ {[%emt 0:00:30]} Kg5 {[%emt 0:00:43]} 51. Qe5+ {[%emt 0:00:30]} Kh6 {[%emt 0:00:30]} 52. Qh8+ {[%emt 0:00:00]} Kg5 {[%emt 0:00:00]} 53. Ke4 {[%emt 0:00:00]} 1/2-1/2

[Event "World Junior U20 Open 2018"]
[Site "Gebze"]
[Date "2018.09.12"]
[Round "8.69"]
[White "Rodrigue-Lemieux, Shawn"]
[Black "Kwon, Sehyun"]
[Result "1-0"]
[ECO "C55"]
[WhiteElo "2250"]
[BlackElo "2129"]
[Annotator "NA"]
[PlyCount "77"]
[EventDate "2018.09.05"]
[EventType "swiss"]
[EventCountry "TUR"]
[SourceTitle "playchess.com"]
[Source "ChessBase"]
[SourceQuality "1"]
[TimeControl "40/5400+30:1800+30"]

1. e4 {[%emt 0:00:30]} e5 {[%emt 0:00:30]} 2. Nf3 {[%emt 0:00:30]} Nc6 {[%emt 0:00:00]} 3. Bc4 {[%emt 0:00:00]} Nf6 {[%emt 0:00:00]} 4. d3 {[%emt 0:00:00]} Be7 {[%emt 0:00:30]} 5. O-O {[%emt 0:00:00]} O-O {[%emt 0:00:00]} 6. c3 {[%emt 0:01:00]} d6 {[%emt 0:00:00]} 7. a4 {[%emt 0:01:30]} Kh8 {[%emt 0:03:30]} 8. a5 {[%emt 0:03:30]} a6 {[%emt 0:01:30]} 9. Qb3 {[%emt 0:04:30]} Qe8 {[%emt 0:22:30]} 10. Ng5 {[%emt 0:01:30]} Nd8 {[%emt 0:00:30]} 11. f4 {[%emt 0:02:30]} h6 {[%emt 0:05:30]} 12. Nf3 {[%emt 0:02:30]} exf4 {[%emt 0:02:30]} 13. Bxf4 {[%emt 0:01:30]} Nh5 {[%emt 0:02:30]} 14. Be3 {[%emt 0:06:30]} f5 {[%emt 0:01:30]} 15. exf5 {[%emt 0:12:30]} Bxf5 {[%emt 0:06:30]} 16. Nd4 {[%emt 0:04:30]} Bh4 {[%emt 0:07:30]} 17. Bd2 {[%emt 0:04:30]} Bg6 {[%emt 0:02:30]} 18. Na3 {[%emt 0:05:30]} Rxf1+ {[%emt 0:06:30]} 19. Rxf1 {[%emt 0:00:00]} c6 {[%emt 0:01:30]} 20. Qd1 {[%emt 0:16:00]} d5 {[%emt 0:01:30]} 21. Ba2 {[%emt 0:00:30]} Bxd3 {[%emt 0:10:30]} 22. Rf3 {[%emt 0:00:30]} Bg6 {[%emt 0:01:30]} 23. g4 {[%emt 0:02:30]} Bf6 {[%emt 0:11:32]} 24. Re3 {[%emt 0:09:30]} Qf7 {[%emt 0:00:56]} 25. gxh5 {[%emt 0:00:30]} Bxh5 {[%emt 0:00:17]} 26. Qf1 {[%emt 0:02:26]} c5 {[%emt 0:05:38]} 27. Nf5 {[%emt 0:04:30]} Nc6 {[%emt 0:01:41]} 28. Rh3 {[%emt 0:02:03]} Bg4 {[%emt 0:01:53]} 29. Nd6 {[%emt 0:03:20]} Qe6 {[%emt 0:02:02]} 30. Rg3 {[%emt 0:02:05]} Rf8 {[%emt 0:00:10]} 31. Qg2 {[%emt 0:01:56]} Be5 {[%emt 0:00:29]} 32. Rxg4 {[%emt 0:00:45]} Qxd6 {[%emt 0:00:28]} 33. Qxd5 {[%emt 0:02:19]} Qf6 {[%emt 0:00:54]} 34. Qg2 {[%emt 0:00:33]} Nd4 {[%emt 0:01:19]} 35. Bd5 {[%emt 0:01:22]} Nf5 {[%emt 0:00:35]} 36. Nc4 {[%emt 0:01:19]} Bc7 {[%emt 0:00:34]} 37. Qf3 {[%emt 0:01:26]} Qd8 {[%emt 0:00:29]} 38. Qe4 {[%emt 0:01:09]} Re8 {[%emt 0:00:42]} 39. Qxf5 {[%emt 0:00:31]} 1-0

[Event "World Junior U20 Open 2018"]
[Site "Gebze"]
[Date "2018.09.12"]
[Round "8.70"]
[White "Nalbant, Tuna Onat"]
[Black "Ongut, Tamas Gunes"]
[Result "1/2-1/2"]
[ECO "B96"]
[WhiteElo "2241"]
[BlackElo "2121"]
[Annotator "NA"]
[PlyCount "46"]
[EventDate "2018.09.05"]
[EventType "swiss"]
[EventCountry "TUR"]
[SourceTitle "playchess.com"]
[Source "ChessBase"]
[SourceQuality "1"]
[TimeControl "40/5400+30:1800+30"]

1. e4 {[%emt 0:00:30]} c5 {[%emt 0:01:30]} 2. Nf3 {[%emt 0:00:00]} d6 {[%emt 0:00:30]} 3. d4 {[%emt 0:00:00]} cxd4 {[%emt 0:00:00]} 4. Nxd4 {[%emt 0:00:30]} Nf6 {[%emt 0:00:00]} 5. Nc3 {[%emt 0:00:30]} a6 {[%emt 0:00:00]} 6. Bg5 {[%emt 0:01:30]} e6 {[%emt 0:00:00]} 7. f4 {[%emt 0:00:30]} h6 {[%emt 0:00:30]} 8. Bh4 {[%emt 0:00:30]} Qb6 {[%emt 0:00:30]} 9. a3 {[%emt 0:00:00]} Be7 {[%emt 0:00:30]} 10. Bf2 {[%emt 0:00:00]} Qc7 {[%emt 0:00:00]} 11. Qf3 {[%emt 0:00:30]} Nbd7 {[%emt 0:00:00]} 12. O-O-O {[%emt 0:00:30]} b5 {[%emt 0:00:00]} 13. Bd3 {[%emt 0:00:30]} Rb8 {[%emt 0:00:00]} 14. Rhe1 {[%emt 0:14:30]} b4 {[%emt 0:00:30]} 15. axb4 {[%emt 0:03:30]} Rxb4 {[%emt 0:00:00]} 16. Nb3 {[%emt 0:24:30]} Bb7 {[%emt 0:04:00]} 17. Kb1 {[%emt 0:04:30]} Nc5 {[%emt 0:06:30]} 18. Nxc5 {[%emt 0:01:30]} dxc5 {[%emt 0:00:30]} 19. Na2 {[%emt 0:02:30]} Ra4 {[%emt 0:07:30]} 20. Nc3 {[%emt 0:05:30]} Rb4 {[%emt 0:00:00]} 21. Na2 {[%emt 0:05:30]} Ra4 {[%emt 0:02:00]} 22. Nc3 {[%emt 0:10:30]} Rb4 {[%emt 0:00:30]} 23. Na2 {[%emt 0:01:30]} Ra4 {[%emt 0:00:00]} 1/2-1/2

[Event "World Junior U20 Open 2018"]
[Site "Gebze"]
[Date "2018.09.12"]
[Round "8.71"]
[White "Dedebas, Emre Emin"]
[Black "Gulden, Egemen"]
[Result "1/2-1/2"]
[ECO "E73"]
[WhiteElo "2334"]
[BlackElo "2068"]
[Annotator "NA"]
[PlyCount "60"]
[EventDate "2018.09.05"]
[EventType "swiss"]
[EventCountry "TUR"]
[SourceTitle "playchess.com"]
[Source "ChessBase"]
[SourceQuality "1"]
[TimeControl "40/5400+30:1800+30"]

1. d4 {[%emt 0:00:30]} Nf6 {[%emt 0:00:30]} 2. c4 {[%emt 0:00:00]} g6 {[%emt 0:00:30]} 3. Nc3 {[%emt 0:00:00]} Bg7 {[%emt 0:00:00]} 4. e4 {[%emt 0:00:30]} d6 {[%emt 0:00:00]} 5. Be2 {[%emt 0:00:00]} O-O {[%emt 0:00:30]} 6. Be3 {[%emt 0:00:00]} c5 {[%emt 0:01:30]} 7. d5 {[%emt 0:00:00]} e6 {[%emt 0:00:30]} 8. Nf3 {[%emt 0:00:00]} exd5 {[%emt 0:00:30]} 9. cxd5 {[%emt 0:00:30]} Bg4 {[%emt 0:03:30]} 10. Nd2 {[%emt 0:02:30]} Bxe2 {[%emt 0:01:30]} 11. Qxe2 {[%emt 0:00:30]} Nfd7 {[%emt 0:04:30]} 12. O-O {[%emt 0:02:30]} Na6 {[%emt 0:02:30]} 13. Nc4 {[%emt 0:10:30]} Nb6 {[%emt 0:04:30]} 14. Bf4 {[%emt 0:08:30]} Nxc4 {[%emt 0:08:30]} 15. Qxc4 {[%emt 0:00:30]} Nc7 {[%emt 0:00:00]} 16. Rad1 {[%emt 0:09:30]} Qd7 {[%emt 0:03:00]} 17. a4 {[%emt 0:09:30]} a6 {[%emt 0:03:30]} 18. Qd3 {[%emt 0:12:30]} b5 {[%emt 0:01:30]} 19. Qg3 {[%emt 0:02:30]} Rfd8 {[%emt 0:06:30]} 20. e5 {[%emt 0:01:30]} dxe5 {[%emt 0:07:30]} 21. Bxe5 {[%emt 0:01:30]} Ne8 {[%emt 0:00:00]} 22. Ne4 {[%emt 0:15:30]} Qe7 {[%emt 0:07:00]} 23. Bxg7 {[%emt 0:03:38]} Qxe4 {[%emt 0:01:30]} 24. Bc3 {[%emt 0:01:28]} Rxd5 {[%emt 0:00:30]} 25. Rde1 {[%emt 0:00:28]} Qf5 {[%emt 0:02:30]} 26. Re3 {[%emt 0:03:45]} b4 {[%emt 0:03:30]} 27. Rfe1 {[%emt 0:01:59]} bxc3 {[%emt 0:14:30]} 28. Rxe8+ {[%emt 0:00:21]} Rxe8 {[%emt 0:00:30]} 29. Rxe8+ {[%emt 0:00:10]} Kg7 {[%emt 0:00:00]} 30. Qxc3+ {[%emt 0:00:23]} Qf6 {[%emt 0:02:00]} 1/2-1/2

[Event "World Junior U20 Open 2018"]
[Site "Gebze"]
[Date "2018.09.12"]
[Round "8.72"]
[White "Ozturk, Efe Hakan"]
[Black "Akdogan, Alperen"]
[Result "0-1"]
[ECO "E05"]
[WhiteElo "2065"]
[BlackElo "2278"]
[Annotator "NA"]
[PlyCount "64"]
[EventDate "2018.09.05"]
[EventType "swiss"]
[EventCountry "TUR"]
[SourceTitle "playchess.com"]
[Source "ChessBase"]
[SourceQuality "1"]
[TimeControl "40/5400+30:1800+30"]

1. d4 {[%emt 0:00:30]} d5 {[%emt 0:00:30]} 2. c4 {[%emt 0:00:30]} e6 {[%emt 0:00:00]} 3. Nf3 {[%emt 0:00:30]} Nf6 {[%emt 0:00:00]} 4. g3 {[%emt 0:00:30]} Be7 {[%emt 0:00:30]} 5. Bg2 {[%emt 0:00:00]} O-O {[%emt 0:00:00]} 6. O-O {[%emt 0:00:00]} dxc4 {[%emt 0:00:00]} 7. Ne5 {[%emt 0:00:30]} Nc6 {[%emt 0:00:30]} 8. Bxc6 {[%emt 0:00:30]} bxc6 {[%emt 0:00:00]} 9. Nxc6 {[%emt 0:00:30]} Qe8 {[%emt 0:00:00]} 10. Nxe7+ {[%emt 0:00:30]} Qxe7 {[%emt 0:00:30]} 11. Qc2 {[%emt 0:00:30]} c5 {[%emt 0:28:30]} 12. Qxc4 {[%emt 0:05:30]} cxd4 {[%emt 0:00:00]} 13. Qxd4 {[%emt 0:00:30]} e5 {[%emt 0:00:00]} 14. Qh4 {[%emt 0:06:30]} Qb7 {[%emt 0:02:30]} 15. Nc3 {[%emt 0:07:30]} Be6 {[%emt 0:01:30]} 16. Bg5 {[%emt 0:10:30]} Ng4 {[%emt 0:00:30]} 17. h3 {[%emt 0:15:30]} Qxb2 {[%emt 0:00:30]} 18. Be7 {[%emt 0:12:30]} Qxc3 {[%emt 0:14:30]} 19. Bxf8 {[%emt 0:00:30]} Nxf2 {[%emt 0:00:30]} 20. Kxf2 {[%emt 0:16:38]} Rxf8 {[%emt 0:00:30]} 21. Rfc1 {[%emt 0:03:33]} Qb2 {[%emt 0:07:30]} 22. a3 {[%emt 0:12:53]} Qb6+ {[%emt 0:02:30]} 23. e3 {[%emt 0:02:47]} Qb2+ {[%emt 0:00:30]} 24. Ke1 {[%emt 0:01:50]} Qg2 {[%emt 0:06:30]} 25. g4 {[%emt 0:00:44]} Bc4 {[%emt 0:01:30]} 26. Qf2 {[%emt 0:00:32]} Qh1+ {[%emt 0:00:30]} 27. Kd2 {[%emt 0:00:01]} Rd8+ {[%emt 0:00:30]} 28. Kc3 {[%emt 0:00:40]} Qc6 {[%emt 0:00:30]} 29. Rab1 {[%emt 0:00:50]} Rd3+ {[%emt 0:01:30]} 30. Kb2 {[%emt 0:00:31]} Qb5+ {[%emt 0:00:30]} 31. Kc2 {[%emt 0:00:28]} Qa4+ {[%emt 0:00:30]} 32. Kb2 {[%emt 0:00:17]} Qxa3+ {[%emt 0:00:30]} 0-1

[Event "World Junior U20 Open 2018"]
[Site "Gebze"]
[Date "2018.09.12"]
[Round "8.74"]
[White "Sezdbekov, Ruslan"]
[Black "Rajic, Ivan"]
[Result "1-0"]
[ECO "B50"]
[WhiteElo "2160"]
[BlackElo "2021"]
[Annotator "NA"]
[PlyCount "127"]
[EventDate "2018.09.05"]
[EventType "swiss"]
[EventCountry "TUR"]
[SourceTitle "playchess.com"]
[Source "ChessBase"]
[SourceQuality "1"]
[TimeControl "40/5400+30:1800+30"]

1. e4 {[%emt 0:00:30]} c5 {[%emt 0:00:30]} 2. Nf3 {[%emt 0:00:00]} d6 {[%emt 0:00:30]} 3. c3 {[%emt 0:00:00]} Nf6 {[%emt 0:00:00]} 4. Be2 {[%emt 0:00:00]} Nc6 {[%emt 0:02:00]} 5. d4 {[%emt 0:00:00]} cxd4 {[%emt 0:00:30]} 6. cxd4 {[%emt 0:00:00]} Nxe4 {[%emt 0:09:30]} 7. d5 {[%emt 0:00:00]} Qa5+ {[%emt 0:00:00]} 8. Nc3 {[%emt 0:00:30]} Nxc3 {[%emt 0:01:00]} 9. bxc3 {[%emt 0:00:00]} Nb8 {[%emt 0:04:30]} 10. O-O {[%emt 0:00:00]} e5 {[%emt 0:05:30]} 11. dxe6 {[%emt 0:01:30]} Bxe6 {[%emt 0:01:30]} 12. Nd4 {[%emt 0:00:30]} Nd7 {[%emt 0:03:30]} 13. Rb1 {[%emt 0:08:30]} Qc7 {[%emt 0:05:30]} 14. Bf3 {[%emt 0:03:30]} Rb8 {[%emt 0:02:30]} 15. Nb5 {[%emt 0:09:30]} Qb6 {[%emt 0:01:30]} 16. Bf4 {[%emt 0:07:30]} Ne5 {[%emt 0:03:30]} 17. Be3 {[%emt 0:01:30]} Qa5 {[%emt 0:11:30]} 18. Bxa7 {[%emt 0:04:30]} Ra8 {[%emt 0:01:30]} 19. Re1 {[%emt 0:03:30]} Be7 {[%emt 0:07:30]} 20. Bxb7 {[%emt 0:03:30]} Rxa7 {[%emt 0:02:30]} 21. Nxa7 {[%emt 0:00:00]} Qxa7 {[%emt 0:01:30]} 22. Rxe5 {[%emt 0:03:00]} dxe5 {[%emt 0:01:30]} 23. Bc6+ {[%emt 0:00:30]} Kf8 {[%emt 0:08:30]} 24. Rb7 {[%emt 0:02:30]} Qa8 {[%emt 0:00:30]} 25. Rxe7 {[%emt 0:00:30]} Kxe7 {[%emt 0:00:00]} 26. Bxa8 {[%emt 0:00:30]} Rxa8 {[%emt 0:00:00]} 27. a4 {[%emt 0:00:30]} Bd7 {[%emt 0:06:48]} 28. Qd5 {[%emt 0:01:30]} Rxa4 {[%emt 0:00:25]} 29. Qxe5+ {[%emt 0:00:00]} Be6 {[%emt 0:02:33]} 30. h3 {[%emt 0:01:00]} g6 {[%emt 0:02:56]} 31. g4 {[%emt 0:00:30]} Rc4 {[%emt 0:01:36]} 32. f4 {[%emt 0:01:30]} f6 {[%emt 0:01:54]} 33. Qa5 {[%emt 0:00:30]} f5 {[%emt 0:04:47]} 34. g5 {[%emt 0:01:30]} Kd7 {[%emt 0:01:21]} 35. Qe5 {[%emt 0:02:30]} Re4 {[%emt 0:01:21]} 36. Qg7+ {[%emt 0:00:30]} Kd6 {[%emt 0:00:37]} 37. Qxh7 {[%emt 0:01:30]} Rxf4 {[%emt 0:01:43]} 38. Qxg6 {[%emt 0:00:30]} Rh4 {[%emt 0:02:09]} 39. Kg2 {[%emt 0:01:30]} f4 {[%emt 0:01:04]} 40. Qf6 {[%emt 0:00:00]} f3+ {[%emt 0:00:00]} 41. Kxf3 {[%emt 0:01:00]} Rxh3+ {[%emt 0:03:16]} 42. Kg2 {[%emt 0:00:30]} Rh4 {[%emt 0:03:30]} 43. g6 {[%emt 0:02:30]} Rg4+ {[%emt 0:03:30]} 44. Kf3 {[%emt 0:00:30]} Rc4 {[%emt 0:06:31]} 45. g7 {[%emt 0:00:30]} Rc8 {[%emt 0:00:16]} 46. c4 {[%emt 0:03:30]} Kd7 {[%emt 0:01:51]} 47. c5 {[%emt 0:00:00]} Rxc5 {[%emt 0:04:34]} 48. Qxe6+ {[%emt 0:00:00]} Kxe6 {[%emt 0:00:03]} 49. g8=Q+ {[%emt 0:00:00]} Kd6 {[%emt 0:00:13]} 50. Ke4 {[%emt 0:00:00]} Re5+ {[%emt 0:01:03]} 51. Kd4 {[%emt 0:00:30]} Re7 {[%emt 0:00:24]} 52. Qd5+ {[%emt 0:00:30]} Kc7 {[%emt 0:00:55]} 53. Kc5 {[%emt 0:00:30]} Rd7 {[%emt 0:00:07]} 54. Qg8 {[%emt 0:01:30]} Re7 {[%emt 0:00:35]} 55. Qh8 {[%emt 0:00:30]} Rf7 {[%emt 0:02:15]} 56. Qh5 {[%emt 0:00:30]} Re7 {[%emt 0:00:38]} 57. Qf5 {[%emt 0:00:30]} Rd7 {[%emt 0:00:48]} 58. Qe5+ {[%emt 0:00:30]} Kb7 {[%emt 0:01:27]} 59. Kb5 {[%emt 0:02:30]} Ka7 {[%emt 0:02:43]} 60. Kc6 {[%emt 0:00:30]} Rb7 {[%emt 0:00:20]} 61. Qe4 {[%emt 0:00:30]} Kb8 {[%emt 0:00:51]} 62. Qd4 {[%emt 0:02:30]} Rc7+ {[%emt 0:01:04]} 63. Kb6 {[%emt 0:00:30]} Rb7+ {[%emt 0:03:52]} 64. Ka6 {[%emt 0:00:30]} 1-0

[Event "World Junior U20 Open 2018"]
[Site "Gebze"]
[Date "2018.09.12"]
[Round "8.75"]
[White "Kilic, Gokturk Kagan"]
[Black "Piyumantha, M Sasith Nipun"]
[Result "1/2-1/2"]
[ECO "B31"]
[WhiteElo "1910"]
[BlackElo "2139"]
[Annotator "NA"]
[PlyCount "61"]
[EventDate "2018.09.05"]
[EventType "swiss"]
[EventCountry "TUR"]
[SourceTitle "playchess.com"]
[Source "ChessBase"]
[SourceQuality "1"]
[TimeControl "40/5400+30:1800+30"]

1. e4 {[%emt 0:00:30]} c5 {[%emt 0:00:30]} 2. Nf3 {[%emt 0:00:30]} Nc6 {[%emt 0:00:00]} 3. Bb5 {[%emt 0:01:30]} g6 {[%emt 0:00:00]} 4. O-O {[%emt 0:02:30]} Bg7 {[%emt 0:00:30]} 5. c3 {[%emt 0:02:30]} e5 {[%emt 0:00:30]} 6. Na3 {[%emt 0:09:30]} Nge7 {[%emt 0:00:30]} 7. Nc2 {[%emt 0:16:30]} O-O {[%emt 0:06:30]} 8. d4 {[%emt 0:06:30]} cxd4 {[%emt 0:00:30]} 9. Bxc6 {[%emt 0:10:30]} Nxc6 {[%emt 0:09:30]} 10. cxd4 {[%emt 0:01:30]} exd4 {[%emt 0:00:30]} 11. Nfxd4 {[%emt 0:00:30]} Nxd4 {[%emt 0:01:30]} 12. Nxd4 {[%emt 0:00:30]} d5 {[%emt 0:00:00]} 13. exd5 {[%emt 0:09:30]} Qxd5 {[%emt 0:00:00]} 14. Be3 {[%emt 0:01:30]} Qe4 {[%emt 0:01:30]} 15. Qb3 {[%emt 0:07:30]} Rd8 {[%emt 0:11:30]} 16. Rfd1 {[%emt 0:09:06]} Bd7 {[%emt 0:05:30]} 17. Rac1 {[%emt 0:06:13]} Rac8 {[%emt 0:02:30]} 18. f3 {[%emt 0:08:47]} Qe7 {[%emt 0:00:00]} 19. Kh1 {[%emt 0:02:19]} Rxc1 {[%emt 0:06:00]} 20. Rxc1 {[%emt 0:00:12]} Ba4 {[%emt 0:00:00]} 21. Qc3 {[%emt 0:01:47]} Qh4 {[%emt 0:01:00]} 22. Qa5 {[%emt 0:00:28]} Rxd4 {[%emt 0:03:30]} 23. Rc8+ {[%emt 0:00:58]} Bf8 {[%emt 0:00:30]} 24. Rxf8+ {[%emt 0:00:00]} Kxf8 {[%emt 0:04:30]} 25. Qc5+ {[%emt 0:00:00]} Kg8 {[%emt 0:00:30]} 26. Qxd4 {[%emt 0:00:00]} Qxd4 {[%emt 0:02:30]} 27. Bxd4 {[%emt 0:00:24]} a6 {[%emt 0:00:30]} 28. Bf6 {[%emt 0:00:30]} Kf8 {[%emt 0:00:00]} 29. Kg1 {[%emt 0:00:04]} Ke8 {[%emt 0:00:00]} 30. Kf2 {[%emt 0:00:00]} Kd7 {[%emt 0:00:30]} 31. Ke3 {[%emt 0:00:19]} 1/2-1/2

[Event "World Junior U20 Open 2018"]
[Site "Gebze"]
[Date "2018.09.12"]
[Round "8.76"]
[White "Dionizio, Andre Filipe Nascim"]
[Black "De Block, Yordi"]
[Result "1/2-1/2"]
[ECO "C24"]
[WhiteElo "2010"]
[BlackElo "2118"]
[Annotator "NA"]
[PlyCount "67"]
[EventDate "2018.09.05"]
[EventType "swiss"]
[EventCountry "TUR"]
[SourceTitle "playchess.com"]
[Source "ChessBase"]
[SourceQuality "1"]
[TimeControl "40/5400+30:1800+30"]

1. e4 {[%emt 0:02:30]} e5 {[%emt 0:00:30]} 2. Nf3 {[%emt 0:00:30]} Nc6 {[%emt 0:00:00]} 3. Bc4 {[%emt 0:00:00]} Nf6 {[%emt 0:00:00]} 4. d3 {[%emt 0:01:00]} d5 {[%emt 0:01:30]} 5. exd5 {[%emt 0:00:30]} Nxd5 {[%emt 0:00:30]} 6. h3 {[%emt 0:00:30]} Bc5 {[%emt 0:00:30]} 7. O-O {[%emt 0:00:30]} O-O {[%emt 0:00:30]} 8. a3 {[%emt 0:01:30]} a5 {[%emt 0:00:30]} 9. Nc3 {[%emt 0:01:30]} Nxc3 {[%emt 0:07:30]} 10. bxc3 {[%emt 0:00:00]} Qd6 {[%emt 0:01:30]} 11. Nd2 {[%emt 0:02:00]} Qg6 {[%emt 0:13:30]} 12. Qf3 {[%emt 0:13:30]} Be6 {[%emt 0:01:30]} 13. Ne4 {[%emt 0:07:30]} Be7 {[%emt 0:03:30]} 14. Bxe6 {[%emt 0:04:30]} Qxe6 {[%emt 0:00:30]} 15. Re1 {[%emt 0:05:30]} Rad8 {[%emt 0:02:30]} 16. Rb1 {[%emt 0:04:30]} f5 {[%emt 0:11:30]} 17. Ng5 {[%emt 0:01:30]} Qg6 {[%emt 0:03:30]} 18. Rxb7 {[%emt 0:15:30]} h6 {[%emt 0:11:30]} 19. Rxc7 {[%emt 0:01:30]} Rf6 {[%emt 0:00:30]} 20. h4 {[%emt 0:09:30]} hxg5 {[%emt 0:00:30]} 21. Bxg5 {[%emt 0:00:00]} e4 {[%emt 0:11:30]} 22. dxe4 {[%emt 0:09:12]} fxe4 {[%emt 0:03:30]} 23. Qe2 {[%emt 0:00:22]} Rf7 {[%emt 0:04:47]} 24. Bxe7 {[%emt 0:02:39]} Nxe7 {[%emt 0:00:33]} 25. Qxe4 {[%emt 0:00:14]} Qxe4 {[%emt 0:04:45]} 26. Rxe4 {[%emt 0:00:30]} Nf5 {[%emt 0:00:30]} 27. Rxf7 {[%emt 0:00:30]} Kxf7 {[%emt 0:00:30]} 28. Re5 {[%emt 0:00:30]} Nxh4 {[%emt 0:00:30]} 29. Rxa5 {[%emt 0:00:30]} Rc8 {[%emt 0:00:37]} 30. Rh5 {[%emt 0:03:43]} Ng6 {[%emt 0:00:42]} 31. Rh3 {[%emt 0:00:46]} Ne5 {[%emt 0:02:43]} 32. Kf1 {[%emt 0:00:48]} Ra8 {[%emt 0:01:06]} 33. Ke2 {[%emt 0:05:54]} Rxa3 {[%emt 0:00:23]} 34. f4 {[%emt 0:03:04]} 1/2-1/2